[Event "January 9 Early 2024"]
[Site "https://www.chess.com"]
[Date "2024.01.11"]
[Round "4"]
[White "Teimouri Yadkuri, Shahdad"]
[Black "Perez Gormaz, Matias"]
[Result "0-1"]
[Board "311"]
[TimeControl "180+1"]
[WhiteFideId "42515467"]
[BlackFideId "3406342"]
[WhiteElo "2421"]
[BlackElo "2678"]
[WhiteTeam "IRI"]
[BlackTeam "CHI"]
[WhiteClock "0:00:19"]
[BlackClock "0:00:14"]

1. e4 {[%clk 0:03:00]}  c6 {[%clk 0:03:00]} 2. Nc3 {[%clk 0:02:58]}  d5 {[%clk 0:03:00]} 3. Nf3 {[%clk 0:02:59]}  dxe4 {[%clk 0:02:58]} 4. Nxe4 {[%clk 0:02:59]}  Bf5 {[%clk 0:02:58]} 5. Ng3 {[%clk 0:02:58]}  Bg4 {[%clk 0:02:58]} 6. Bc4 {[%clk 0:02:45]}  e6 {[%clk 0:02:51]} 7. h3 {[%clk 0:02:45]}  Bxf3 {[%clk 0:02:51]} 8. Qxf3 {[%clk 0:02:46]}  Nf6 {[%clk 0:02:52]} 9. c3 {[%clk 0:02:46]}  Nbd7 {[%clk 0:02:49]} 10. d4 {[%clk 0:02:46]}  Bd6 {[%clk 0:02:50]} 11. O-O {[%clk 0:02:46]}  O-O {[%clk 0:02:50]} 12. Ne4 {[%clk 0:02:45]}  Nxe4 {[%clk 0:02:48]} 13. Qxe4 {[%clk 0:02:46]}  Qc7 {[%clk 0:02:45]} 14. Bg5 {[%clk 0:02:42]}  Rae8 {[%clk 0:02:38]} 15. Rae1 {[%clk 0:02:33]}  Nf6 {[%clk 0:02:17]} 16. Qh4 {[%clk 0:02:20]}  Nd5 {[%clk 0:02:11]} 17. Bd3 {[%clk 0:02:18]}  f5 {[%clk 0:02:06]} 18. Re2 {[%clk 0:02:00]}  Bf4 {[%clk 0:01:57]} 19. g3 {[%clk 0:01:49]}  Bxg5 {[%clk 0:01:55]} 20. Qxg5 {[%clk 0:01:50]}  f4 {[%clk 0:01:27]} 21. Rfe1 {[%clk 0:01:34]}  fxg3 {[%clk 0:01:15]} 22. fxg3 {[%clk 0:01:34]}  Qf7 {[%clk 0:01:08]} 23. Be4 {[%clk 0:01:26]}  g6 {[%clk 0:01:05]} 24. Qe5 {[%clk 0:01:22]}  Ne7 {[%clk 0:00:46]} 25. b3 {[%clk 0:01:16]}  Nf5 {[%clk 0:00:21]} 26. Rf2 {[%clk 0:01:14]}  Qg7 {[%clk 0:00:20]} 27. Qxg7+ {[%clk 0:00:56]}  Nxg7 {[%clk 0:00:20]} 28. Rfe2 {[%clk 0:00:56]}  Rf6 {[%clk 0:00:18]} 29. Kg2 {[%clk 0:00:55]}  Kf7 {[%clk 0:00:18]} 30. Bf3 {[%clk 0:00:55]}  Kf8 {[%clk 0:00:17]} 31. c4 {[%clk 0:00:54]}  Rd8 {[%clk 0:00:16]} 32. Rd2 {[%clk 0:00:50]}  Nf5 {[%clk 0:00:15]} 33. d5 {[%clk 0:00:47]}  exd5 {[%clk 0:00:16]} 34. cxd5 {[%clk 0:00:47]}  Rfd6 {[%clk 0:00:15]} 35. Rc2 {[%clk 0:00:30]}  cxd5 {[%clk 0:00:12]} 36. Rc7 {[%clk 0:00:30]}  R8d7 {[%clk 0:00:11]} 37. Rc8+ {[%clk 0:00:25]}  Rd8 {[%clk 0:00:08]} 38. Rc7 {[%clk 0:00:25]}  R6d7 {[%clk 0:00:07]} 39. Rc3 {[%clk 0:00:20]}  d4 {[%clk 0:00:07]} 40. Rd3 {[%clk 0:00:20]}  Ne3+ {[%clk 0:00:07]} 41. Kf2 {[%clk 0:00:19]}  Kg7 {[%clk 0:00:07]} 42. Ke2 {[%clk 0:00:16]}  Rc7 {[%clk 0:00:05]} 43. Rd2 {[%clk 0:00:15]}  Re7 {[%clk 0:00:05]} 44. Kd3 {[%clk 0:00:15]}  Rc7 {[%clk 0:00:02]} 45. Ke2 {[%clk 0:00:15]}  Rc3 {[%clk 0:00:02]} 46. Kf2 {[%clk 0:00:15]}  Nf5 {[%clk 0:00:02]} 47. Re4 {[%clk 0:00:15]}  Rf8 {[%clk 0:00:03]} 48. Rf4 {[%clk 0:00:15]}  g5 {[%clk 0:00:02]} 49. Rg4 {[%clk 0:00:08]}  h6 {[%clk 0:00:02]} 50. Kg2 {[%clk 0:00:08]}  Ne3+ {[%clk 0:00:03]} 51. Kh2 {[%clk 0:00:08]}  Nxg4+ {[%clk 0:00:04]} 52. Bxg4 {[%clk 0:00:09]}  d3 {[%clk 0:00:04]} 53. Bd1 {[%clk 0:00:08]}  Rf1 {[%clk 0:00:04]} 54. Kg2 {[%clk 0:00:08]}  Re1 {[%clk 0:00:04]} 55. Kf2 {[%clk 0:00:08]}  Re7 {[%clk 0:00:05]} 56. a4 {[%clk 0:00:08]}  a5 {[%clk 0:00:04]} 57. h4 {[%clk 0:00:07]}  Re8 {[%clk 0:00:04]} 58. hxg5 {[%clk 0:00:07]}  hxg5 {[%clk 0:00:05]} 59. Kf3 {[%clk 0:00:07]}  Re7 {[%clk 0:00:05]} 60. Kg4 {[%clk 0:00:07]}  Kf6 {[%clk 0:00:06]} 61. Kf3 {[%clk 0:00:08]}  Kf5 {[%clk 0:00:05]} 62. Kf2 {[%clk 0:00:08]}  g4 {[%clk 0:00:05]} 63. Kg2 {[%clk 0:00:08]}  Kg5 {[%clk 0:00:05]} 64. Kf2 {[%clk 0:00:09]}  Re8 {[%clk 0:00:03]} 65. Kg2 {[%clk 0:00:09]}  Re6 {[%clk 0:00:03]} 66. Kf2 {[%clk 0:00:10]}  Re7 {[%clk 0:00:03]} 67. Kg2 {[%clk 0:00:10]}  Kf6 {[%clk 0:00:04]} 68. Kf2 {[%clk 0:00:11]}  Ke5 {[%clk 0:00:05]} 69. Ke3 {[%clk 0:00:11]}  Kd6+ {[%clk 0:00:05]} 70. Kf4 {[%clk 0:00:12]}  Kc5 {[%clk 0:00:05]} 71. Kxg4 {[%clk 0:00:11]}  Kd4 {[%clk 0:00:06]} 72. Kf4 {[%clk 0:00:11]}  Rf7+ {[%clk 0:00:06]} 73. Kg5 {[%clk 0:00:11]}  Ke3 {[%clk 0:00:07]} 74. Rh2 {[%clk 0:00:11]}  Rf1 {[%clk 0:00:08]} 75. Bg4 {[%clk 0:00:10]}  d2 {[%clk 0:00:07]} 76. Re2+ {[%clk 0:00:09]}  Kd3 {[%clk 0:00:07]} 77. Re5 {[%clk 0:00:10]}  Kd4 {[%clk 0:00:06]} 78. Re6 {[%clk 0:00:10]}  Rc5+ {[%clk 0:00:07]} 79. Kg6 {[%clk 0:00:10]}  d1=Q {[%clk 0:00:07]} 80. Bxd1 {[%clk 0:00:09]}  Rxd1 {[%clk 0:00:08]} 81. Rd6+ {[%clk 0:00:10]}  Rd5 {[%clk 0:00:08]} 82. Rb6 {[%clk 0:00:11]}  Rd7 {[%clk 0:00:08]} 83. Rb5 {[%clk 0:00:11]}  Kc3 {[%clk 0:00:08]} 84. Rxa5 {[%clk 0:00:11]}  Rg1 {[%clk 0:00:09]} 85. Rb5 {[%clk 0:00:09]}  Rxg3+ {[%clk 0:00:08]} 86. Kf6 {[%clk 0:00:10]}  Re3 {[%clk 0:00:08]} 87. a5 {[%clk 0:00:09]}  Red3 {[%clk 0:00:08]} 88. Ke6 {[%clk 0:00:08]}  Rc7 {[%clk 0:00:08]} 89. Rb6 {[%clk 0:00:08]}  Kc2 {[%clk 0:00:08]} 90. b4 {[%clk 0:00:08]}  Kc3 {[%clk 0:00:08]} 91. b5 {[%clk 0:00:08]}  Kc4 {[%clk 0:00:08]} 92. a6 {[%clk 0:00:09]}  bxa6 {[%clk 0:00:09]} 93. bxa6 {[%clk 0:00:09]}  Re3+ {[%clk 0:00:09]} 94. Kd6 {[%clk 0:00:09]}  Ra7 {[%clk 0:00:09]} 95. Rc6+ {[%clk 0:00:07]}  Kb5 {[%clk 0:00:09]} 96. Rc1 {[%clk 0:00:07]}  Rb3 {[%clk 0:00:08]} 97. Kd5 {[%clk 0:00:08]}  Rxa6 {[%clk 0:00:07]} 98. Rc8 {[%clk 0:00:09]}  Rd3+ {[%clk 0:00:06]} 99. Ke4 {[%clk 0:00:09]}  Rd1 {[%clk 0:00:07]} 100. Rb8+ {[%clk 0:00:09]}  Rb6 {[%clk 0:00:07]} 101. Rc8 {[%clk 0:00:10]}  Re6+ {[%clk 0:00:07]} 102. Kf5 {[%clk 0:00:10]}  Ree1 {[%clk 0:00:08]} 103. Rc2 {[%clk 0:00:10]}  Kb6 {[%clk 0:00:08]} 104. Rb2+ {[%clk 0:00:10]}  Kc5 {[%clk 0:00:09]} 105. Ra2 {[%clk 0:00:10]}  Re3 {[%clk 0:00:08]} 106. Ra5+ {[%clk 0:00:10]}  Kb6 {[%clk 0:00:08]} 107. Ra2 {[%clk 0:00:10]}  Rf1+ {[%clk 0:00:09]} 108. Kg4 {[%clk 0:00:11]}  Re8 {[%clk 0:00:09]} 109. Kg3 {[%clk 0:00:11]}  Rf7 {[%clk 0:00:09]} 110. Kg2 {[%clk 0:00:11]}  Rg8+ {[%clk 0:00:09]} 111. Kh1 {[%clk 0:00:12]}  Rh7+ {[%clk 0:00:10]} 112. Rh2 {[%clk 0:00:12]}  Rxh2+ {[%clk 0:00:10]} 113. Kxh2 {[%clk 0:00:13]}  Kc5 {[%clk 0:00:11]} 114. Kh3 {[%clk 0:00:13]}  Kd4 {[%clk 0:00:11]} 115. Kh4 {[%clk 0:00:14]}  Ke5 {[%clk 0:00:12]} 116. Kh5 {[%clk 0:00:15]}  Rg1 {[%clk 0:00:13]} 117. Kh6 {[%clk 0:00:16]}  Kf5 {[%clk 0:00:13]} 118. Kh7 {[%clk 0:00:17]}  Kf6 {[%clk 0:00:14]} 119. Kh6 {[%clk 0:00:18]}  Rg5 {[%clk 0:00:13]} 120. Kh7 {[%clk 0:00:18]}  Kf7 {[%clk 0:00:13]} 121. Kh6 {[%clk 0:00:19]}  Rf5 {[%clk 0:00:13]} 122. Kh7 {[%clk 0:00:19]}  Rh5# {[%clk 0:00:14]} 0-1

[Event "January 9 Early 2024"]
[Site "https://www.chess.com"]
[Date "2024.01.11"]
[Round "4"]
[White "Zou, Chen"]
[Black "McCoy, Owen"]
[Result "1/2-1/2"]
[Board "312"]
[TimeControl "180+1"]
[WhiteFideId "8610959"]
[BlackFideId "30924502"]
[WhiteElo "2796"]
[BlackElo "2597"]
[WhiteTeam "CHN"]
[BlackTeam "USA"]
[WhiteClock "0:00:04"]
[BlackClock "0:00:05"]

1. Nf3 {[%clk 0:03:00]}  Nf6 {[%clk 0:02:58]} 2. c4 {[%clk 0:02:59]}  e6 {[%clk 0:02:57]} 3. Nc3 {[%clk 0:02:59]}  d5 {[%clk 0:02:57]} 4. d4 {[%clk 0:02:58]}  c5 {[%clk 0:02:56]} 5. e3 {[%clk 0:02:58]}  a6 {[%clk 0:02:45]} 6. dxc5 {[%clk 0:02:53]}  Bxc5 {[%clk 0:02:44]} 7. a3 {[%clk 0:02:54]}  dxc4 {[%clk 0:02:36]} 8. Qxd8+ {[%clk 0:02:53]}  Kxd8 {[%clk 0:02:36]} 9. Bxc4 {[%clk 0:02:54]}  Ke7 {[%clk 0:02:17]} 10. b4 {[%clk 0:02:53]}  Ba7 {[%clk 0:02:17]} 11. Bb2 {[%clk 0:02:53]}  Nbd7 {[%clk 0:01:53]} 12. Ke2 {[%clk 0:02:52]}  b5 {[%clk 0:01:45]} 13. Bd3 {[%clk 0:02:50]}  Bb7 {[%clk 0:01:45]} 14. Rac1 {[%clk 0:02:48]}  Rhc8 {[%clk 0:01:40]} 15. Rhd1 {[%clk 0:02:46]}  g6 {[%clk 0:01:36]} 16. Nb1 {[%clk 0:02:27]}  Be4 {[%clk 0:01:30]} 17. Bxe4 {[%clk 0:02:16]}  Nxe4 {[%clk 0:01:31]} 18. Nd4 {[%clk 0:01:59]}  Bxd4 {[%clk 0:01:21]} 19. Bxd4 {[%clk 0:02:00]}  Nd6 {[%clk 0:01:15]} 20. Nd2 {[%clk 0:01:57]}  e5 {[%clk 0:01:04]} 21. Bc5 {[%clk 0:01:49]}  Nxc5 {[%clk 0:00:57]} 22. bxc5 {[%clk 0:01:50]}  Nb7 {[%clk 0:00:57]} 23. Nb3 {[%clk 0:01:40]}  Rc6 {[%clk 0:00:52]} 24. Rd5 {[%clk 0:01:37]}  Ke6 {[%clk 0:00:51]} 25. e4 {[%clk 0:01:35]}  Rac8 {[%clk 0:00:47]} 26. f4 {[%clk 0:01:24]}  f6 {[%clk 0:00:41]} 27. g4 {[%clk 0:01:21]}  a5 {[%clk 0:00:36]} 28. f5+ {[%clk 0:01:05]}  Ke7 {[%clk 0:00:30]} 29. fxg6 {[%clk 0:00:55]}  hxg6 {[%clk 0:00:31]} 30. g5 {[%clk 0:00:56]}  a4 {[%clk 0:00:30]} 31. gxf6+ {[%clk 0:00:56]}  Kxf6 {[%clk 0:00:31]} 32. Nd2 {[%clk 0:00:41]}  Rxc5 {[%clk 0:00:30]} 33. Rf1+ {[%clk 0:00:40]}  Ke7 {[%clk 0:00:30]} 34. Rg1 {[%clk 0:00:34]}  Rxd5 {[%clk 0:00:25]} 35. exd5 {[%clk 0:00:35]}  Kd6 {[%clk 0:00:25]} 36. Rxg6+ {[%clk 0:00:30]}  Kxd5 {[%clk 0:00:25]} 37. h4 {[%clk 0:00:29]}  Rc3 {[%clk 0:00:23]} 38. Rb6 {[%clk 0:00:27]}  Nc5 {[%clk 0:00:18]} 39. Rxb5 {[%clk 0:00:27]}  Rxa3 {[%clk 0:00:16]} 40. Rb8 {[%clk 0:00:18]}  Rh3 {[%clk 0:00:16]} 41. Rd8+ {[%clk 0:00:18]}  Kc6 {[%clk 0:00:11]} 42. Rc8+ {[%clk 0:00:17]}  Kb5 {[%clk 0:00:09]} 43. Rb8+ {[%clk 0:00:18]}  Ka6 {[%clk 0:00:07]} 44. Ra8+ {[%clk 0:00:13]}  Kb7 {[%clk 0:00:07]} 45. Ra5 {[%clk 0:00:13]}  Kc6 {[%clk 0:00:05]} 46. Nf3 {[%clk 0:00:13]}  e4 {[%clk 0:00:05]} 47. Nd4+ {[%clk 0:00:13]}  Kd5 {[%clk 0:00:05]} 48. Nf5 {[%clk 0:00:13]}  Kc4 {[%clk 0:00:05]} 49. Nd6+ {[%clk 0:00:11]}  Kb4 {[%clk 0:00:05]} 50. Rb5+ {[%clk 0:00:11]}  Ka3 {[%clk 0:00:04]} 51. Nc4+ {[%clk 0:00:11]}  Ka2 {[%clk 0:00:04]} 52. Rxc5 {[%clk 0:00:12]}  Rxh4 {[%clk 0:00:04]} 53. Rb5 {[%clk 0:00:13]}  Rh3 {[%clk 0:00:03]} 54. Rb2+ {[%clk 0:00:11]}  Ka1 {[%clk 0:00:04]} 55. Rb8 {[%clk 0:00:10]}  Rb3 {[%clk 0:00:03]} 56. Ra8 {[%clk 0:00:10]}  Rb4 {[%clk 0:00:03]} 57. Nb6 {[%clk 0:00:11]}  Kb2 {[%clk 0:00:03]} 58. Nxa4+ {[%clk 0:00:10]}  Kb3 {[%clk 0:00:02]} 59. Nc5+ {[%clk 0:00:11]}  Kc3 {[%clk 0:00:02]} 60. Ne6 {[%clk 0:00:12]}  Rb2+ {[%clk 0:00:02]} 61. Ke3 {[%clk 0:00:12]}  Rb6 {[%clk 0:00:02]} 62. Rc8+ {[%clk 0:00:12]}  Kb4 {[%clk 0:00:03]} 63. Nd4 {[%clk 0:00:12]}  Rh6 {[%clk 0:00:02]} 64. Kxe4 {[%clk 0:00:12]}  Rh4+ {[%clk 0:00:02]} 65. Kd3 {[%clk 0:00:12]}  Rh3+ {[%clk 0:00:02]} 66. Ke4 {[%clk 0:00:13]}  Rh4+ {[%clk 0:00:03]} 67. Ke5 {[%clk 0:00:14]}  Rh5+ {[%clk 0:00:03]} 68. Nf5 {[%clk 0:00:15]}  Kb5 {[%clk 0:00:04]} 69. Rc1 {[%clk 0:00:15]}  Kb4 {[%clk 0:00:04]} 70. Rf1 {[%clk 0:00:16]}  Kc4 {[%clk 0:00:04]} 71. Rd1 {[%clk 0:00:15]}  Kc5 {[%clk 0:00:04]} 72. Rc1+ {[%clk 0:00:15]}  Kb4 {[%clk 0:00:04]} 73. Rc8 {[%clk 0:00:15]}  Kb5 {[%clk 0:00:04]} 74. Ke4 {[%clk 0:00:13]}  Kb4 {[%clk 0:00:04]} 75. Nd6 {[%clk 0:00:13]}  Rh4+ {[%clk 0:00:04]} 76. Kd5 {[%clk 0:00:12]}  Rh5+ {[%clk 0:00:04]} 77. Kc6 {[%clk 0:00:12]}  Kc3 {[%clk 0:00:04]} 78. Kd7+ {[%clk 0:00:12]}  Kd4 {[%clk 0:00:04]} 79. Ra8 {[%clk 0:00:10]}  Kd3 {[%clk 0:00:03]} 80. Ra3+ {[%clk 0:00:09]}  Kd4 {[%clk 0:00:03]} 81. Ra4+ {[%clk 0:00:10]}  Kd3 {[%clk 0:00:03]} 82. Kc6 {[%clk 0:00:11]}  Rg5 {[%clk 0:00:02]} 83. Ra3+ {[%clk 0:00:11]}  Ke2 {[%clk 0:00:03]} 84. Nf7 {[%clk 0:00:09]}  Rh5 {[%clk 0:00:03]} 85. Kd6 {[%clk 0:00:09]}  Kd2 {[%clk 0:00:03]} 86. Ne5 {[%clk 0:00:09]}  Ke2 {[%clk 0:00:03]} 87. Kd5 {[%clk 0:00:09]}  Kd2 {[%clk 0:00:03]} 88. Rg3 {[%clk 0:00:08]}  Ke2 {[%clk 0:00:03]} 89. Ke4 {[%clk 0:00:08]}  Rh4+ {[%clk 0:00:03]} 90. Ng4 {[%clk 0:00:08]}  Kd2 {[%clk 0:00:03]} 91. Kd4 {[%clk 0:00:07]}  Kc2 {[%clk 0:00:03]} 92. Kc4 {[%clk 0:00:05]}  Kd2 {[%clk 0:00:02]} 93. Kd4 {[%clk 0:00:06]}  Kc2 {[%clk 0:00:02]} 94. Ke5 {[%clk 0:00:06]}  Kd2 {[%clk 0:00:02]} 95. Ke4 {[%clk 0:00:05]}  Kc2 {[%clk 0:00:02]} 96. Rg2+ {[%clk 0:00:05]}  Kc3 {[%clk 0:00:02]} 97. Kf5 {[%clk 0:00:05]}  Kd4 {[%clk 0:00:02]} 98. Nf6 {[%clk 0:00:04]}  Rh8 {[%clk 0:00:02]} 99. Rg4+ {[%clk 0:00:04]}  Kc5 {[%clk 0:00:02]} 100. Rg1 {[%clk 0:00:05]}  Rf8 {[%clk 0:00:02]} 101. Rc1+ {[%clk 0:00:06]}  Kd4 {[%clk 0:00:02]} 102. Rd1+ {[%clk 0:00:06]}  Kc5 {[%clk 0:00:02]} 103. Ke5 {[%clk 0:00:07]}  Rh8 {[%clk 0:00:03]} 104. Rc1+ {[%clk 0:00:07]}  Kb4 {[%clk 0:00:03]} 105. Kd4 {[%clk 0:00:07]}  Rh4+ {[%clk 0:00:03]} 106. Kd5 {[%clk 0:00:07]}  Kb5 {[%clk 0:00:04]} 107. Rb1+ {[%clk 0:00:07]}  Ka6 {[%clk 0:00:04]} 108. Ne4 {[%clk 0:00:06]}  Rh5+ {[%clk 0:00:04]} 109. Kc6 {[%clk 0:00:06]}  Rh6+ {[%clk 0:00:04]} 110. Nd6 {[%clk 0:00:06]}  Ka5 {[%clk 0:00:05]} 111. Rb5+ {[%clk 0:00:03]}  Ka4 {[%clk 0:00:05]} 112. Rb8 {[%clk 0:00:04]}  Ka3 {[%clk 0:00:05]} 113. Kc5 {[%clk 0:00:04]}  Rh5+ {[%clk 0:00:05]} 114. Kc6 {[%clk 0:00:04]} 1/2-1/2

[Event "January 9 Early 2024"]
[Site "https://www.chess.com"]
[Date "2024.01.11"]
[Round "5"]
[White "Garcia Correa, Jose Ricardo"]
[Black "Mirza, Diana"]
[Result "1-0"]
[Board "3"]
[TimeControl "180+1"]
[WhiteFideId "5101832"]
[BlackFideId "2503999"]
[WhiteElo "2221"]
[BlackElo "2000"]
[WhiteTeam "MEX"]
[BlackTeam "IRL"]
[WhiteClock "0:02:31"]
[BlackClock "0:02:12"]

1. e4 {[%clk 0:03:00]}  c5 {[%clk 0:02:51]} 2. Nf3 {[%clk 0:03:00]}  e6 {[%clk 0:02:49]} 3. d4 {[%clk 0:03:01]}  cxd4 {[%clk 0:02:50]} 4. Nxd4 {[%clk 0:03:01]}  Nc6 {[%clk 0:02:46]} 5. Nc3 {[%clk 0:03:01]}  a6 {[%clk 0:02:46]} 6. Nxc6 {[%clk 0:03:00]}  bxc6 {[%clk 0:02:46]} 7. Bd3 {[%clk 0:03:01]}  e5 {[%clk 0:02:45]} 8. O-O {[%clk 0:02:59]}  Nf6 {[%clk 0:02:45]} 9. f4 {[%clk 0:02:58]}  exf4 {[%clk 0:02:41]} 10. Bxf4 {[%clk 0:02:50]}  Bc5+ {[%clk 0:02:41]} 11. Kh1 {[%clk 0:02:50]}  O-O {[%clk 0:02:37]} 12. e5 {[%clk 0:02:49]}  Ne8 {[%clk 0:02:31]} 13. Ne4 {[%clk 0:02:47]}  Be7 {[%clk 0:02:27]} 14. Qh5 {[%clk 0:02:44]}  g6 {[%clk 0:02:22]} 15. Qh6 {[%clk 0:02:44]}  f5 {[%clk 0:02:20]} 16. Bc4+ {[%clk 0:02:33]}  Kh8 {[%clk 0:02:16]} 17. Ng5 {[%clk 0:02:31]}  Bxg5 {[%clk 0:02:15]} 18. Bxg5 {[%clk 0:02:31]}  Qc7 {[%clk 0:02:12]} 19. Qxf8# {[%clk 0:02:31]} 1-0

[Event "January 9 Early 2024"]
[Site "https://www.chess.com"]
[Date "2024.01.11"]
[Round "5"]
[White "Mirzoev, Azer"]
[Black "Aukhatov, Roman"]
[Result "1-0"]
[Board "5"]
[TimeControl "180+1"]
[WhiteFideId "13400304"]
[BlackFideId "44150768"]
[WhiteElo "2635"]
[BlackElo "2438"]
[WhiteTeam "AZE"]
[BlackTeam "RUS"]
[WhiteClock "0:02:23"]
[BlackClock "0:01:46"]

1. c4 {[%clk 0:03:00]}  Nf6 {[%clk 0:02:54]} 2. Nc3 {[%clk 0:02:59]}  c5 {[%clk 0:02:48]} 3. g3 {[%clk 0:02:59]}  e6 {[%clk 0:02:44]} 4. Bg2 {[%clk 0:02:54]}  d5 {[%clk 0:02:44]} 5. Nf3 {[%clk 0:02:54]}  d4 {[%clk 0:02:35]} 6. Na4 {[%clk 0:02:54]}  Nc6 {[%clk 0:02:34]} 7. O-O {[%clk 0:02:53]}  e5 {[%clk 0:02:31]} 8. d3 {[%clk 0:02:53]}  Be7 {[%clk 0:02:30]} 9. a3 {[%clk 0:02:53]}  O-O {[%clk 0:02:30]} 10. Rb1 {[%clk 0:02:52]}  Nd7 {[%clk 0:02:18]} 11. e4 {[%clk 0:02:39]}  a6 {[%clk 0:02:11]} 12. b3 {[%clk 0:02:38]}  b5 {[%clk 0:02:10]} 13. Nb2 {[%clk 0:02:38]}  Nb6 {[%clk 0:01:55]} 14. Bd2 {[%clk 0:02:36]}  Bd7 {[%clk 0:01:52]} 15. Ne1 {[%clk 0:02:33]}  Rb8 {[%clk 0:01:45]} 16. f4 {[%clk 0:02:29]}  bxc4 {[%clk 0:01:46]} 17. bxc4 {[%clk 0:02:29]}  Nxc4 {[%clk 0:01:46]} 18. dxc4 {[%clk 0:02:23]} 1-0

[Event "January 9 Early 2024"]
[Site "https://www.chess.com"]
[Date "2024.01.11"]
[Round "5"]
[White "Paravyan, David"]
[Black "Fier, Alexandr"]
[Result "1-0"]
[Board "11"]
[TimeControl "180+1"]
[WhiteFideId "4194985"]
[BlackFideId "2107139"]
[WhiteElo "3010"]
[BlackElo "2737"]
[WhiteTeam "FID"]
[BlackTeam "BRA"]
[WhiteClock "0:01:35"]
[BlackClock "0:02:21"]

1. e4 {[%clk 0:03:00]}  Nf6 {[%clk 0:02:58]} 2. e5 {[%clk 0:03:01]}  Nd5 {[%clk 0:02:58]} 3. d4 {[%clk 0:03:02]}  d6 {[%clk 0:02:59]} 4. c4 {[%clk 0:03:02]}  Nb6 {[%clk 0:02:59]} 5. exd6 {[%clk 0:03:03]}  cxd6 {[%clk 0:02:59]} 6. h3 {[%clk 0:03:01]}  g6 {[%clk 0:02:58]} 7. Nf3 {[%clk 0:03:02]}  Bg7 {[%clk 0:02:59]} 8. Be2 {[%clk 0:03:02]}  O-O {[%clk 0:03:00]} 9. O-O {[%clk 0:03:03]}  Nc6 {[%clk 0:03:00]} 10. d5 {[%clk 0:02:56]}  Na5 {[%clk 0:02:57]} 11. Nbd2 {[%clk 0:02:54]}  Qc7 {[%clk 0:02:52]} 12. a4 {[%clk 0:02:04]}  Nbxc4 {[%clk 0:02:45]} 13. Nxc4 {[%clk 0:02:03]}  Nxc4 {[%clk 0:02:36]} 14. Qc2 {[%clk 0:02:03]}  Bf5 {[%clk 0:02:25]} 15. Qxc4 {[%clk 0:02:02]}  Qxc4 {[%clk 0:02:26]} 16. Bxc4 {[%clk 0:02:03]}  Rfb8 {[%clk 0:02:27]} 17. Re1 {[%clk 0:01:59]}  Rc8 {[%clk 0:02:27]} 18. Bb3 {[%clk 0:01:58]}  Bc2 {[%clk 0:02:23]} 19. Bxc2 {[%clk 0:01:57]}  Rxc2 {[%clk 0:02:24]} 20. Rxe7 {[%clk 0:01:57]}  Rac8 {[%clk 0:02:25]} 21. Be3 {[%clk 0:01:57]}  Rxb2 {[%clk 0:02:24]} 22. Bd4 {[%clk 0:01:39]}  Bxd4 {[%clk 0:02:20]} 23. Nxd4 {[%clk 0:01:40]}  Rd2 {[%clk 0:02:20]} 24. Nb5 {[%clk 0:01:39]}  Rxd5 {[%clk 0:02:19]} 25. Nxa7 {[%clk 0:01:34]}  Ra8 {[%clk 0:02:19]} 26. Rxb7 {[%clk 0:01:34]}  Ra5 {[%clk 0:02:20]} 27. Nb5 {[%clk 0:01:33]}  Rxa4 {[%clk 0:02:20]} 28. Rxa4 {[%clk 0:01:34]}  Rxa4 {[%clk 0:02:20]} 29. Nxd6 {[%clk 0:01:35]}  Rf4 {[%clk 0:02:21]} 30. g3 {[%clk 0:01:34]}  Rf6 {[%clk 0:02:21]} 31. Rb8+ {[%clk 0:01:35]} 1-0

[Event "January 9 Early 2024"]
[Site "https://www.chess.com"]
[Date "2024.01.11"]
[Round "5"]
[White "Chan, Wei Xuan Timothy"]
[Black "Giri, Anish"]
[Result "0-1"]
[Board "12"]
[TimeControl "180+1"]
[WhiteFideId "5802032"]
[BlackFideId "24116068"]
[WhiteElo "2723"]
[BlackElo "2987"]
[WhiteTeam "SGP"]
[BlackTeam "NED"]
[WhiteClock "0:00:38"]
[BlackClock "0:02:44"]

1. e4 {[%clk 0:00:43]}  c5 {[%clk 0:02:58]} 2. Nf3 {[%clk 0:00:43]}  d6 {[%clk 0:02:58]} 3. Bb5+ {[%clk 0:00:43]}  Nd7 {[%clk 0:02:58]} 4. d4 {[%clk 0:00:43]}  cxd4 {[%clk 0:02:57]} 5. Qxd4 {[%clk 0:00:44]}  a6 {[%clk 0:02:56]} 6. Bxd7+ {[%clk 0:00:45]}  Qxd7 {[%clk 0:02:56]} 7. Nc3 {[%clk 0:00:44]}  e5 {[%clk 0:02:55]} 8. Qd3 {[%clk 0:00:44]}  Qc6 {[%clk 0:02:56]} 9. Be3 {[%clk 0:00:44]}  Be6 {[%clk 0:02:55]} 10. O-O-O {[%clk 0:00:43]}  Rc8 {[%clk 0:02:55]} 11. Kb1 {[%clk 0:00:43]}  Nf6 {[%clk 0:02:54]} 12. Ng5 {[%clk 0:00:41]}  Bc4 {[%clk 0:02:51]} 13. Qd2 {[%clk 0:00:41]}  h6 {[%clk 0:02:52]} 14. Nf3 {[%clk 0:00:40]}  b5 {[%clk 0:02:49]} 15. Rhe1 {[%clk 0:00:37]}  b4 {[%clk 0:02:48]} 16. Nd5 {[%clk 0:00:38]}  Nxe4 {[%clk 0:02:44]} 0-1

[Event "January 9 Early 2024"]
[Site "https://www.chess.com"]
[Date "2024.01.11"]
[Round "5"]
[White "Pappelis, Dimitrios"]
[Black "Spichkin, Alexander"]
[Result "0-1"]
[Board "13"]
[TimeControl "180+1"]
[WhiteFideId "4215281"]
[BlackFideId "4144074"]
[WhiteElo "2159"]
[BlackElo "2397"]
[WhiteTeam "GRE"]
[BlackTeam "RUS"]
[WhiteClock "0:00:50"]
[BlackClock "0:02:34"]

1. Nf3 {[%clk 0:02:35]}  f5 {[%clk 0:02:57]} 2. d3 {[%clk 0:02:35]}  d6 {[%clk 0:02:52]} 3. e4 {[%clk 0:02:33]}  e5 {[%clk 0:02:51]} 4. Nc3 {[%clk 0:02:30]}  Nc6 {[%clk 0:02:51]} 5. Bg5 {[%clk 0:02:13]}  Nf6 {[%clk 0:02:50]} 6. Nd5 {[%clk 0:02:04]}  Be7 {[%clk 0:02:49]} 7. Nxe7 {[%clk 0:02:03]}  Qxe7 {[%clk 0:02:49]} 8. Be2 {[%clk 0:02:02]}  O-O {[%clk 0:02:49]} 9. c3 {[%clk 0:01:49]}  Qf7 {[%clk 0:02:49]} 10. Bxf6 {[%clk 0:01:48]}  Qxf6 {[%clk 0:02:49]} 11. Qc2 {[%clk 0:01:45]}  fxe4 {[%clk 0:02:46]} 12. dxe4 {[%clk 0:01:45]}  Be6 {[%clk 0:02:45]} 13. O-O-O {[%clk 0:01:41]}  a5 {[%clk 0:02:44]} 14. Kb1 {[%clk 0:01:39]}  a4 {[%clk 0:02:45]} 15. Rhf1 {[%clk 0:01:31]}  h6 {[%clk 0:02:44]} 16. Nd2 {[%clk 0:01:30]}  Qf7 {[%clk 0:02:43]} 17. a3 {[%clk 0:01:23]}  Na5 {[%clk 0:02:36]} 18. Qxa4 {[%clk 0:01:08]}  Ba2+ {[%clk 0:02:36]} 19. Kc1 {[%clk 0:00:58]}  Nb3+ {[%clk 0:02:35]} 20. Nxb3 {[%clk 0:00:50]}  Rxa4 {[%clk 0:02:34]} 0-1

[Event "January 9 Early 2024"]
[Site "https://www.chess.com"]
[Date "2024.01.11"]
[Round "5"]
[White "Anton Guijarro, David"]
[Black "Rodriguez Santiago, Jaime"]
[Result "1-0"]
[Board "18"]
[TimeControl "180+1"]
[WhiteFideId "2285525"]
[BlackFideId "3100898"]
[WhiteElo "2980"]
[BlackElo "2299"]
[WhiteTeam "ESP"]
[BlackTeam "PUR"]
[WhiteClock "0:01:49"]
[BlackClock "0:01:14"]

1. Nf3 {[%clk 0:03:00]}  Nf6 {[%clk 0:02:59]} 2. b3 {[%clk 0:03:00]}  d5 {[%clk 0:02:57]} 3. Bb2 {[%clk 0:03:01]}  c5 {[%clk 0:02:57]} 4. e3 {[%clk 0:03:01]}  Nc6 {[%clk 0:02:58]} 5. Bb5 {[%clk 0:03:00]}  Bg4 {[%clk 0:02:54]} 6. h3 {[%clk 0:02:59]}  Bh5 {[%clk 0:02:54]} 7. g4 {[%clk 0:02:59]}  Bg6 {[%clk 0:02:54]} 8. Ne5 {[%clk 0:02:59]}  Rc8 {[%clk 0:02:53]} 9. h4 {[%clk 0:02:57]}  h5 {[%clk 0:02:39]} 10. g5 {[%clk 0:02:57]}  Ne4 {[%clk 0:02:33]} 11. Nxg6 {[%clk 0:02:49]}  fxg6 {[%clk 0:02:34]} 12. Bd3 {[%clk 0:02:48]}  Qd6 {[%clk 0:02:01]} 13. Bxe4 {[%clk 0:02:47]}  dxe4 {[%clk 0:02:00]} 14. Nc3 {[%clk 0:02:47]}  Qe6 {[%clk 0:01:57]} 15. Qe2 {[%clk 0:02:44]}  a6 {[%clk 0:01:52]} 16. O-O-O {[%clk 0:02:28]}  Qf5 {[%clk 0:01:45]} 17. Qc4 {[%clk 0:02:22]}  Qxf2 {[%clk 0:01:25]} 18. Rdf1 {[%clk 0:02:19]}  Qg3 {[%clk 0:01:22]} 19. Nxe4 {[%clk 0:02:14]}  Qg4 {[%clk 0:01:15]} 20. Rf4 {[%clk 0:02:00]}  Qd7 {[%clk 0:01:14]} 21. Nxc5 {[%clk 0:01:49]} 1-0